fUST/lending_fUST_20240828
["ID","MTS","AMOUNT","RATE_DAILY","PERIOD"]
[336396761,1724806244416,-500.0,0.00011232,2]
[336396762,1724806244426,-500.0,0.00011232,2]
[336396763,1724806244438,-500.0,0.00011232,2]
[336396764,1724806244451,-500.0,0.00011232,2]
[336396765,1724806244463,-500.0,0.00011232,2]
[336396766,1724806244474,-500.0,0.00011232,2]
[336396767,1724806244483,-500.0,0.00011232,2]
[336396768,1724806244493,-500.0,0.00011232,2]
[336396769,1724806244502,-500.0,0.00011232,2]
[336396770,1724806244512,-500.0,0.00011232,2]
[336396771,1724806244523,-500.0,0.00011232,2]
[336396772,1724806244534,-500.0,0.00011232,2]
[336396773,1724806244545,-500.0,0.00011232,2]
[336396774,1724806244554,-500.0,0.00011232,2]
[336396775,1724806244564,-500.0,0.00011232,2]
[336396776,1724806244574,-500.0,0.00011232,2]
[336396777,1724806244585,-500.0,0.00011232,2]
[336396778,1724806244595,-500.0,0.00011232,2]
[336396779,1724806244606,-500.0,0.00011232,2]
[336396780,1724806244616,-500.0,0.00011232,2]
[336396781,1724806244627,-500.0,0.00011232,2]
[336396782,1724806244636,-534.07,0.00011232,2]
[336396783,1724806244645,-500.0,0.00011232,2]
[336396784,1724806244655,-500.0,0.00011232,2]
[336396785,1724806244665,-500.0,0.00011232,2]
[336396786,1724806244675,-403.9481357,0.00011232,2]
[336396787,1724806244687,-500.0,0.00011232,2]
[336396788,1724806244699,-500.0,0.00011232,2]
[336396789,1724806244710,-500.0,0.00011232,2]
[336396790,1724806244720,-1049.73,0.00011232,2]
[336396791,1724806244729,-500.0,0.00011232,2]
[336396792,1724806244739,-500.0,0.00011232,2]
[336396793,1724806244749,-500.0,0.00011232,2]
[336396794,1724806244758,-500.0,0.00011232,2]
[336396795,1724806244768,-500.0,0.00011232,2]
[336396796,1724806244777,-500.0,0.00011232,2]
[336396797,1724806244786,-501.05,0.00011232,2]
[336396798,1724806244795,-504.7174126,0.00011232,2]
[336396799,1724806244805,-405.0842841,0.00011232,2]
[336396800,1724806244814,-500.0,0.00011232,2]
[336396801,1724806244824,-500.0,0.00011232,2]
[336396802,1724806244833,-500.0,0.00011232,2]
[336396803,1724806244842,-500.0,0.00011232,2]
[336396804,1724806244851,-500.0,0.00011232,2]
[336396805,1724806244861,-564.56604931,0.00011232,2]
[336396806,1724806244870,-657.46,0.00011232,2]
[336396807,1724806244881,-177.23,0.00011232,2]
[336396808,1724806244890,-500.0,0.00011232,2]
[336396809,1724806244900,-500.0,0.00011232,2]
[336396810,1724806244909,-500.0,0.00011232,2]
[336396811,1724806244919,-500.0,0.00011232,2]
[336396812,1724806244928,-500.0,0.00011232,2]
[336396813,1724806244941,-500.0,0.00011232,2]
[336396814,1724806244952,-500.0,0.00011232,2]
[336396815,1724806244964,-500.0,0.00011232,2]
[336396816,1724806244974,-1039.71,0.00011232,2]
[336396817,1724806244985,-451.7853251,0.00011232,2]
[336396818,1724806244994,-500.0,0.00011232,2]
[336396819,1724806245005,-500.0,0.00011232,2]
[336396820,1724806245015,-2307.19,0.00011232,2]
[336396821,1724806245025,-500.0,0.00011232,2]
[336396822,1724806245034,-3508.51,0.00011232,2]
[336396823,1724806245043,-500.0,0.00011232,2]
[336396824,1724806245052,-500.0,0.00011232,2]
[336396825,1724806245062,-500.0,0.00011232,2]
[336396826,1724806245072,-241.98,0.00011232,2]
[336396827,1724806245081,-500.0,0.00011232,2]
[336396828,1724806245090,-5222.05,0.00011232,2]
[336396829,1724806245100,-500.0,0.00011232,2]
[336396830,1724806245110,-500.0,0.00011232,2]
[336396831,1724806245120,-500.0,0.00011232,2]
[336396832,1724806245133,-500.0,0.00011232,2]
[336396833,1724806245144,-500.0,0.00011232,2]
[336396834,1724806245154,-500.0,0.00011232,2]
[336396835,1724806245164,-500.0,0.00011232,2]
[336396836,1724806245175,-16225.43,0.00011232,2]
[336396837,1724806245188,-500.0,0.00011232,2]
[336396838,1724806245205,-4850.17,0.00011232,2]
[336396839,1724806245216,-500.0,0.00011232,2]
[336396840,1724806245226,-921.96,0.00011232,2]
[336396841,1724806245235,-919.1,0.00011232,2]
[336396842,1724806245247,-500.0,0.00011232,2]
[336396843,1724806245256,-500.0,0.00011232,2]
[336396844,1724806245266,-549.86099431,0.00011232,2]
[336396845,1724806245275,-2019.09,0.00011232,2]
[336396846,1724806245285,-3719.4,0.00011232,2]
[336396847,1724806245294,-500.0,0.00011232,2]
[336396848,1724806245304,-500.0,0.00011232,2]
[336396849,1724806245316,-500.0,0.00011232,2]
[336396850,1724806245325,-584.0,0.00011232,2]
[336396851,1724806245335,-3631.71,0.00011232,2]
[336396852,1724806245345,-500.0,0.00011232,2]
[336396853,1724806245355,-500.0,0.00011232,2]
[336396854,1724806245369,-500.0,0.00011232,2]
[336396855,1724806245379,-275.56946795,0.00011232,2]
[336396856,1724806245389,-500.0,0.00011232,2]
[336396857,1724806245399,-500.0,0.00011232,2]
[336396858,1724806245409,-500.0,0.00011232,2]
[336396859,1724806245418,-500.0,0.00011232,2]
[336396860,1724806245427,-500.0,0.00011232,2]
[336396861,1724806245439,-500.0,0.00011232,2]
[336396862,1724806245450,-500.0,0.00011232,2]
[336396863,1724806245460,-535.66040708,0.00011232,2]
[336396864,1724806245469,-536.03,0.00011232,2]
[336396865,1724806245478,-500.0,0.00011232,2]
[336396866,1724806245488,-500.0,0.00011232,2]
[336396867,1724806245497,-491.64178261,0.00011232,2]
[336396868,1724806245506,-500.0,0.00011232,2]
[336396869,1724806245516,-500.0,0.00011232,2]
[336396870,1724806245525,-1145.88,0.00011232,2]
[336396871,1724806245535,-500.0,0.00011232,2]
[336396872,1724806245545,-500.0,0.00011232,2]
[336396873,1724806245556,-500.0,0.00011232,2]
[336396874,1724806245565,-500.0,0.00011232,2]
[336396876,1724806245575,-500.0,0.00011232,2]
[336396878,1724806245585,-500.0,0.00011232,2]
[336396879,1724806245595,-500.0,0.00011232,2]
[336396881,1724806245605,-500.0,0.00011232,2]
[336396882,1724806245614,-500.0,0.00011232,2]
[336396883,1724806245624,-500.0,0.00011232,2]
[336396884,1724806245633,-500.0,0.00011232,2]
[336396885,1724806245643,-500.0,0.00011232,2]
[336396886,1724806245653,-500.0,0.00011232,2]
[336396887,1724806245662,-500.0,0.00011232,2]
[336396888,1724806245672,-500.0,0.00011232,2]
[336396889,1724806245684,-170.79598897,0.00011232,2]
[336396890,1724806245693,-500.0,0.00011232,2]
[336396891,1724806245703,-500.0,0.00011232,2]
[336396892,1724806245712,-500.0,0.00011232,2]
[336396893,1724806245721,-500.0,0.00011232,2]
[336396894,1724806245730,-500.0,0.00011232,2]
[336396895,1724806245740,-500.0,0.00011232,2]
[336396896,1724806245751,-500.0,0.00011232,2]
[336396897,1724806245761,-890.6,0.00011232,2]
[336396898,1724806245770,-500.0,0.00011232,2]
[336396899,1724806245780,-500.0,0.00011232,2]
[336396900,1724806245792,-500.0,0.00011232,2]
[336396901,1724806245802,-500.0,0.00011232,2]
[336396902,1724806245812,-500.0,0.00011232,2]
[336396903,1724806245823,-500.0,0.00011232,2]
[336396904,1724806245834,-500.9563934,0.00011232,2]
[336396906,1724806245844,-500.0,0.00011232,2]
[336396908,1724806245853,-500.0,0.00011232,2]
[336396909,1724806245863,-500.0,0.00011232,2]
[336396911,1724806245873,-534.2102392,0.00011232,2]
[336396912,1724806245883,-500.0,0.00011232,2]
[336396913,1724806245893,-824.0,0.00011232,2]
[336396914,1724806245902,-2646.08,0.00011232,2]
[336396916,1724806245911,-500.0,0.00011232,2]
[336396917,1724806245921,-500.0,0.00011232,2]
[336396918,1724806245931,-500.0,0.00011232,2]
[336396919,1724806245941,-500.0,0.00011232,2]
[336396920,1724806245950,-500.0,0.00011232,2]
[336396921,1724806245960,-500.0,0.00011232,2]
[336396922,1724806245972,-500.0,0.00011232,2]
[336396923,1724806245981,-500.0,0.00011232,2]
[336396924,1724806245993,-501.50539514,0.00011232,2]
[336396925,1724806246003,-1443.84,0.00011232,2]
[336396926,1724806246012,-500.0,0.00011232,2]
[336396927,1724806246022,-500.0,0.00011232,2]
[336396928,1724806246032,-500.0,0.00011232,2]
[336396929,1724806246041,-500.0,0.00011232,2]
[336396930,1724806246051,-500.0,0.00011232,2]
[336396931,1724806246061,-500.0,0.00011232,2]
[336396932,1724806246072,-9140.54,0.00011232,2]
[336396933,1724806246085,-500.0,0.00011232,2]
[336396934,1724806246095,-5985.82,0.00011232,2]
[336396935,1724806246105,-500.0,0.00011232,2]
[336396936,1724806246115,-500.0,0.00011232,2]
[336396937,1724806246125,-500.0,0.00011232,2]
[336396938,1724806246136,-500.0,0.00011232,2]
[336396939,1724806246147,-500.0,0.00011232,2]
[336396940,1724806246158,-500.0,0.00011232,2]
[336396941,1724806246168,-500.0,0.00011232,2]
[336396942,1724806246179,-500.0,0.00011232,2]
[336396943,1724806246202,-500.0,0.00011232,2]
[336396944,1724806246213,-3446.53,0.00011232,2]
[336396945,1724806246223,-500.0,0.00011232,2]
[336396946,1724806246233,-500.0,0.00011232,2]
[336396947,1724806246246,-500.0,0.00011232,2]
[336396948,1724806246258,-500.0,0.00011232,2]
[336396949,1724806246269,-500.0,0.00011232,2]
[336396950,1724806246280,-409.22214731,0.00011232,2]
[336396951,1724806246290,-500.0,0.00011232,2]
[336396952,1724806246300,-500.0,0.00011232,2]
[336396953,1724806246310,-393.87105477,0.00011232,2]
[336396954,1724806246321,-500.0,0.00011232,2]
[336396955,1724806246331,-4310.38,0.00011232,2]
[336396956,1724806246341,-500.0,0.00011232,2]
[336396957,1724806246352,-500.0,0.00011232,2]
[336396958,1724806246364,-500.0,0.00011232,2]
[336396959,1724806246379,-500.0,0.00011232,2]
[336396960,1724806246389,-3212.2,0.00011232,2]
[336396961,1724806246401,-500.0,0.00011232,2]
[336396962,1724806246480,-176.829513,0.00011324,2]
[336396963,1724806246489,-753.98,0.00011405,2]
[336396964,1724806246499,-15057.08566277,0.00011406,2]
[336396965,1724806246509,-1949.87222712,0.00011406,2]
[336396966,1724806246518,-500.0,0.00011504,2]
[336396967,1724806246527,-500.0,0.00011505,2]
[336396968,1724806246538,-753.98,0.00011505,2]
[336396969,1724806246547,-753.98,0.00011505,2]
[336396970,1724806246556,-753.98,0.00011505,2]
[336396971,1724806246566,-500.0,0.00011506,2]
[336396972,1724806246576,-170.07381663,0.00011506,2]
[336396973,1724806246588,-315.83,0.00011506,2]
[336396974,1724806246598,-625.54,0.00011506,2]
[336396975,1724806246609,-500.0,0.00011506,2]
[336396976,1724806246618,-500.0,0.00011506,2]
[336396977,1724806246628,-599.95,0.00011506,2]
[336396978,1724806246640,-500.0,0.00011506,2]
[336396979,1724806246652,-500.0,0.00011506,2]
[336396980,1724806246662,-500.0,0.00011506,2]
[336396981,1724806246672,-500.0,0.00011506,2]
[336396982,1724806246684,-500.0,0.00011506,2]
[336396983,1724806246695,-500.0,0.00011506,2]
[336396984,1724806246704,-500.0,0.00011506,2]
[336396985,1724806246713,-270.73110087,0.00011506,2]
[336396986,1724806246724,-500.0,0.00011506,2]
[336396987,1724806246735,-500.0,0.00011506,2]
[336396988,1724806246748,-500.0,0.00011506,2]
[336396989,1724806246758,-1201.41,0.00011506,2]
[336396990,1724806246769,-500.0,0.00011506,2]
[336396991,1724806246783,-500.0,0.00011506,2]
[336396992,1724806246792,-500.0,0.00011506,2]
[336396993,1724806246801,-500.0,0.00011506,2]
[336396994,1724806246811,-500.0,0.00011506,2]
[336396995,1724806246820,-500.0,0.00011506,2]
[336396996,1724806246829,-500.0,0.00011506,2]
[336396997,1724806246838,-500.0,0.00011506,2]
[336396998,1724806246847,-500.0,0.00011506,2]
[336396999,1724806246856,-500.0,0.00011506,2]
[336397000,1724806246865,-500.0,0.00011506,2]
[336397001,1724806246874,-500.0,0.00011506,2]
[336397002,1724806246883,-751.88,0.00011506,2]
[336397003,1724806246892,-500.0,0.00011506,2]
[336397004,1724806246902,-500.0,0.00011506,2]
[336397005,1724806246911,-500.0,0.00011506,2]
[336397006,1724806246920,-500.0,0.00011506,2]
[336397007,1724806246930,-1498.53,0.00011506,2]
[336397008,1724806246941,-500.0,0.00011506,2]
[336397009,1724806246951,-485.59001987,0.00011506,2]
[336397010,1724806246961,-500.0,0.00011506,2]
[336397011,1724806246972,-500.0,0.00011506,2]
[336397012,1724806246981,-500.0,0.00011506,2]
[336397013,1724806246990,-500.0,0.00011506,2]
[336397014,1724806246999,-500.0,0.00011506,2]
[336397015,1724806247009,-500.0,0.00011506,2]
[336397016,1724806247019,-253.03,0.00011506,2]
[336397017,1724806247028,-500.0,0.00011506,2]
[336397018,1724806247038,-500.0,0.00011506,2]
[336397019,1724806247048,-500.0,0.00011506,2]
[336397020,1724806247059,-500.0,0.00011506,2]
[336397021,1724806247070,-500.0,0.00011506,2]
[336397022,1724806247079,-500.0,0.00011506,2]
[336397023,1724806247088,-500.0,0.00011506,2]
[336397024,1724806247098,-500.0,0.00011506,2]
[336397025,1724806247108,-500.0,0.00011506,2]
[336397026,1724806247117,-500.0,0.00011506,2]
[336397027,1724806247126,-500.0,0.00011506,2]
[336397028,1724806247138,-502.26295667,0.00011506,2]
[336397029,1724806247149,-500.0,0.00011506,2]
[336397030,1724806247159,-500.0,0.00011506,2]
[336397031,1724806247169,-500.0,0.00011506,2]
[336397032,1724806247178,-500.0,0.00011506,2]
[336397033,1724806247190,-500.0,0.00011506,2]
[336397034,1724806247200,-500.0,0.00011506,2]
[336397035,1724806247211,-500.0,0.00011506,2]
[336397036,1724806247220,-500.0,0.00011506,2]
[336397037,1724806247230,-500.0,0.00011506,2]
[336397038,1724806247239,-500.0,0.00011506,2]
[336397039,1724806247248,-500.0,0.00011506,2]
[336397040,1724806247258,-500.0,0.00011506,2]
[336397041,1724806247268,-195.32,0.00011506,2]
[336397042,1724806247277,-345.93000185,0.00011506,2]
[336397043,1724806247288,-534.07,0.00011506,2]
[336397044,1724806247298,-500.0,0.00011506,2]
[336397045,1724806247308,-323.99,0.00011506,2]
[336397046,1724806247318,-334.24,0.00011506,2]
[336397047,1724806247328,-540.24442495,0.00011506,2]
[336397048,1724806247338,-500.0,0.00011506,2]
[336397049,1724806247348,-500.0,0.00011506,2]
[336397050,1724806247360,-1049.73,0.00011506,2]
[336397051,1724806247371,-567.27,0.00011506,2]
[336397052,1724806247380,-500.0,0.00011506,2]
[336397053,1724806247390,-500.0,0.00011506,2]
[336397054,1724806247405,-501.05,0.00011506,2]
[336397055,1724806247415,-500.0,0.00011506,2]
[336397056,1724806247424,-403.68,0.00011506,2]
[336397057,1724806247437,-500.0,0.00011506,2]
[336397058,1724806247447,-314.25,0.00011506,2]
[336397059,1724806247458,-500.0,0.00011506,2]
[336397060,1724806247467,-657.46,0.00011506,2]
[336397061,1724806247477,-500.0,0.00011506,2]
[336397062,1724806247486,-500.0,0.00011506,2]
[336397063,1724806247496,-1039.71,0.00011506,2]
[336397064,1724806247506,-500.0,0.00011506,2]
[336397065,1724806247515,-2307.19,0.00011506,2]
[336397066,1724806247524,-489.85316171,0.00011506,2]
[336397067,1724806247534,-3508.51,0.00011506,2]
[336397068,1724806247544,-500.0,0.00011506,2]
[336397069,1724806247553,-500.0,0.00011506,2]
[336397070,1724806247562,-500.0,0.00011506,2]
[336397071,1724806247572,-500.0,0.00011506,2]
[336397072,1724806247581,-5222.05,0.00011506,2]
[336397073,1724806247590,-500.0,0.00011506,2]
[336397074,1724806247599,-500.0,0.00011506,2]
[336397075,1724806247609,-500.0,0.00011506,2]
[336397076,1724806247618,-500.0,0.00011506,2]
[336397077,1724806247627,-240.3207733,0.00011506,2]
[336397078,1724806247636,-472.88064532,0.00011506,2]
[336397079,1724806247646,-16225.43,0.00011506,2]
[336397080,1724806247656,-500.0,0.00011506,2]
[336397081,1724806247666,-4850.17,0.00011506,2]
[336397082,1724806247675,-500.0,0.00011506,2]
[336397083,1724806247687,-921.96,0.00011506,2]
[336397084,1724806247696,-919.1,0.00011506,2]
[336397085,1724806247705,-500.0,0.00011506,2]
[336397086,1724806247715,-500.0,0.00011506,2]
[336397087,1724806247724,-2019.09,0.00011506,2]
[336397088,1724806247734,-3719.4,0.00011506,2]
[336397089,1724806247744,-585.65,0.00011506,2]
[336397090,1724806247753,-500.0,0.00011506,2]
[336397091,1724806247762,-584.0,0.00011506,2]
[336397092,1724806247771,-3631.71,0.00011506,2]
[336397093,1724806247781,-500.0,0.00011506,2]
[336397094,1724806247790,-502.70080558,0.00011506,2]
[336397095,1724806247799,-501.92765703,0.00011506,2]
[336397096,1724806247810,-500.0,0.00011506,2]
[336397097,1724806247819,-500.0,0.00011506,2]
[336397098,1724806247828,-500.0,0.00011506,2]
[336397099,1724806247838,-500.0,0.00011506,2]
[336397100,1724806247848,-500.0,0.00011506,2]
[336397101,1724806247858,-536.03,0.00011506,2]
[336397102,1724806247867,-500.0,0.00011506,2]
[336397103,1724806247877,-500.0,0.00011506,2]
[336397104,1724806247887,-649.88,0.00011506,2]
[336397105,1724806247897,-1145.88,0.00011506,2]
[336397106,1724806247907,-500.0,0.00011506,2]
[336397107,1724806247917,-500.0,0.00011506,2]
[336397108,1724806247927,-500.0,0.00011506,2]
[336397109,1724806247938,-500.0,0.00011506,2]
[336397110,1724806247949,-500.0,0.00011506,2]
[336397111,1724806247960,-500.0,0.00011506,2]
[336397112,1724806247969,-500.0,0.00011506,2]
[336397113,1724806247979,-500.0,0.00011506,2]
[336397114,1724806247990,-500.0,0.00011506,2]
[336397115,1724806247999,-500.0,0.00011506,2]
[336397116,1724806248010,-500.0,0.00011506,2]
[336397117,1724806248020,-500.0,0.00011506,2]
[336397118,1724806248030,-500.0,0.00011506,2]
[336397119,1724806248040,-500.0,0.00011506,2]
[336397120,1724806248050,-500.0,0.00011506,2]
[336397121,1724806248060,-500.0,0.00011506,2]
[336397122,1724806248071,-890.6,0.00011506,2]
[336397123,1724806248081,-500.0,0.00011506,2]
[336397124,1724806248092,-500.0,0.00011506,2]
[336397125,1724806248103,-500.0,0.00011506,2]
[336397126,1724806248113,-500.0,0.00011506,2]
[336397127,1724806248124,-500.0,0.00011506,2]
[336397128,1724806248133,-500.0,0.00011506,2]
[336397129,1724806248143,-500.0,0.00011506,2]
[336397130,1724806248153,-500.0,0.00011506,2]
[336397131,1724806248163,-824.0,0.00011506,2]
[336397132,1724806248173,-2646.08,0.00011506,2]
[336397133,1724806248184,-500.0,0.00011506,2]
[336397134,1724806248194,-500.0,0.00011506,2]
[336397135,1724806248204,-500.0,0.00011506,2]
[336397136,1724806248215,-500.0,0.00011506,2]
[336397137,1724806248224,-500.0,0.00011506,2]
[336397138,1724806248235,-500.0,0.00011506,2]
[336397139,1724806248246,-1443.84,0.00011506,2]
[336397140,1724806248256,-500.0,0.00011506,2]
[336397141,1724806248266,-500.0,0.00011506,2]
[336397142,1724806248276,-500.0,0.00011506,2]
[336397143,1724806248286,-500.0,0.00011506,2]
[336397144,1724806248296,-500.0,0.00011506,2]
[336397145,1724806248306,-500.0,0.00011506,2]
[336397146,1724806248317,-9140.54,0.00011506,2]
[336397147,1724806248326,-500.0,0.00011506,2]
[336397148,1724806248336,-5985.82,0.00011506,2]
[336397149,1724806248346,-500.0,0.00011506,2]
[336397150,1724806248356,-500.0,0.00011506,2]
[336397151,1724806248367,-500.0,0.00011506,2]
[336397152,1724806248379,-500.0,0.00011506,2]
[336397153,1724806248390,-550.79,0.00011506,2]
[336397154,1724806248401,-632.00744761,0.00011506,2]
[336397155,1724806248411,-500.0,0.00011506,2]
[336397156,1724806248421,-500.0,0.00011506,2]
[336397157,1724806248431,-3446.53,0.00011506,2]
[336397158,1724806248450,-500.0,0.00011506,2]
[336397159,1724806248460,-500.0,0.00011506,2]
[336397160,1724806248470,-218.50278203,0.00011506,2]
[336397161,1724806248480,-500.0,0.00011506,2]
[336397162,1724806248490,-500.0,0.00011506,2]
[336397163,1724806248501,-226.17752374,0.00011506,2]
[336397164,1724806248512,-500.0,0.00011506,2]
[336397165,1724806248522,-4310.38,0.00011506,2]
[336397166,1724806248533,-500.0,0.00011506,2]
[336397167,1724806248545,-500.0,0.00011506,2]
[336397168,1724806248556,-500.0,0.00011506,2]
[336397169,1724806248566,-500.0,0.00011506,2]
[336397170,1724806248578,-3212.2,0.00011506,2]
[336397171,1724806248589,-500.0,0.00011506,2]
[336397172,1724806248599,-176.829513,0.00011507,2]
[336397173,1724806248610,-1000.0,0.00011521,2]
[336397174,1724806248620,-1000.0,0.00011521,2]
[336397175,1724806248631,-500.0,0.00011573,2]
[336397176,1724806248641,-409.3878908,0.000116,2]
[336397177,1724806248651,-753.98,0.00011679,2]
[336397178,1724806248662,-15057.08566277,0.0001168,2]
[336397179,1724806248672,-288.5284708,0.00011712,2]
[336397180,1724806248686,-753.98,0.00011779,2]
[336397181,1724806248696,-753.98,0.00011779,2]
[336397182,1724806248706,-753.98,0.00011779,2]
[336397183,1724806248716,-753.98,0.00011779,2]
[336397184,1724806248725,-753.98,0.00011779,2]
[336397185,1724806248735,-754.07809799,0.00011779,2]
[336397186,1724806248746,-500.0,0.0001178,2]
[336397187,1724806248756,-500.0,0.0001178,2]
[336397188,1724806248766,-227.88,0.0001178,2]
[336397189,1724806248776,-500.0,0.0001178,2]
[336397190,1724806248786,-290.93984343,0.0001178,2]
[336397191,1724806248796,-633.70898855,0.0001178,2]
[336397192,1724806248806,-500.0,0.0001178,2]
[336397193,1724806248818,-259.96,0.0001178,2]
[336397194,1724806248829,-628.4,0.0001178,2]
[336397195,1724806248840,-500.0,0.0001178,2]
[336397196,1724806248850,-500.0,0.0001178,2]
[336397197,1724806248860,-1201.41,0.0001178,2]
[336397198,1724806248871,-500.0,0.0001178,2]
[336397199,1724806248882,-500.0,0.0001178,2]
[336397200,1724806248892,-500.0,0.0001178,2]
[336397201,1724806248903,-575.13,0.0001178,2]
[336397202,1724806248913,-500.0,0.0001178,2]
[336397203,1724806248923,-500.0,0.0001178,2]
[336397204,1724806248937,-751.88,0.0001178,2]
[336397205,1724806248947,-500.0,0.0001178,2]
[336397206,1724806248956,-500.0,0.0001178,2]
[336397207,1724806248967,-500.0,0.0001178,2]
[336397208,1724806248976,-488.57433442,0.0001178,2]
[336397209,1724806248986,-1498.53,0.0001178,2]
[336397210,1724806248997,-500.0,0.0001178,2]
[336397211,1724806249008,-614.99708397,0.0001178,2]
[336397212,1724806249019,-500.0,0.0001178,2]
[336397213,1724806249030,-500.0,0.0001178,2]
[336397214,1724806249040,-500.0,0.0001178,2]
[336397215,1724806249050,-500.0,0.0001178,2]
[336397216,1724806249061,-500.0,0.0001178,2]
[336397217,1724806249072,-500.0,0.0001178,2]
[336397218,1724806249082,-500.0,0.0001178,2]
[336397219,1724806249094,-500.0,0.0001178,2]
[336397220,1724806249105,-500.0,0.0001178,2]
[336397221,1724806249115,-500.0,0.0001178,2]
[336397222,1724806249125,-500.0,0.0001178,2]
[336397223,1724806249135,-500.0,0.0001178,2]
[336397224,1724806249144,-602.9,0.0001178,2]
[336397225,1724806249154,-500.0,0.0001178,2]
[336397226,1724806249164,-500.0,0.0001178,2]
[336397227,1724806249174,-500.0,0.0001178,2]
[336397228,1724806249189,-500.0,0.0001178,2]
[336397229,1724806249200,-500.0,0.0001178,2]
[336397230,1724806249210,-500.0,0.0001178,2]
[336397231,1724806249220,-500.0,0.0001178,2]
[336397232,1724806249231,-500.0,0.0001178,2]
[336397233,1724806249242,-500.0,0.0001178,2]
[336397234,1724806249253,-534.07,0.0001178,2]
[336397235,1724806249263,-500.0,0.0001178,2]
[336397236,1724806249273,-500.0,0.0001178,2]
[336397237,1724806249283,-1049.73,0.0001178,2]
[336397238,1724806249293,-500.0,0.0001178,2]
[336397239,1724806249304,-564.37355843,0.0001178,2]
[336397240,1724806249315,-501.05,0.0001178,2]
[336397241,1724806249325,-574.03,0.0001178,2]
[336397242,1724806249335,-337.62,0.0001178,2]
[336397243,1724806249345,-500.0,0.0001178,2]
[336397244,1724806249355,-657.46,0.0001178,2]
[336397245,1724806249369,-266.90196587,0.0001178,2]
[336397246,1724806249379,-500.0,0.0001178,2]
[336397247,1724806249389,-1039.71,0.0001178,2]
[336397248,1724806249400,-500.0,0.0001178,2]
[336397249,1724806249411,-2307.19,0.0001178,2]
[336397250,1724806249423,-3508.51,0.0001178,2]
[336397251,1724806249435,-500.0,0.0001178,2]
[336397252,1724806249445,-500.0,0.0001178,2]
[336397253,1724806249457,-500.0,0.0001178,2]
[336397254,1724806249467,-5222.05,0.0001178,2]
[336397255,1724806249476,-500.0,0.0001178,2]
[336397256,1724806249487,-579.12,0.0001178,2]
[336397257,1724806249497,-500.0,0.0001178,2]
[336397258,1724806249507,-16225.43,0.0001178,2]
[336397259,1724806249517,-500.0,0.0001178,2]
[336397260,1724806249527,-4850.17,0.0001178,2]
[336397261,1724806249537,-500.0,0.0001178,2]
[336397262,1724806249547,-921.96,0.0001178,2]
[336397263,1724806249557,-919.1,0.0001178,2]
[336397264,1724806249567,-500.0,0.0001178,2]
[336397265,1724806249577,-500.0,0.0001178,2]
[336397266,1724806249587,-2019.09,0.0001178,2]
[336397267,1724806249596,-3719.4,0.0001178,2]